Workbook

Sheet transwell migration
F1: cells seeded | J1: 25000
F2: multiplication factor | J2: 1
F3: for SF N used cal curve y=30081,94x-1839,97
F4: for SF SF used cal curve y=43899,28x-3071,53
F5: amount of cells | M5: amount of cells | T5: amount of cells
B6: insert | C6: well | D6: A | E6: A-blank | G6: % cells | K6: A | L6: A-blank | N6: % cells | R6: A | S6: A-blank | U6: % cells
B7: SF (medium without serum) | C7: N (growth medium with serum) | D7: 0.3885 | E7: =D7-$D$19 -> 0.3465 | F7: =(E7*30081.94)-1839.97 -> 8583.42 | G7: =(F7/$J$1)*100*$J$2 -> 34.33 | K7: 0.3926 | L7: =K7-$K$19 -> 0.3509 | M7: =(L7*30081.94)-1839.97 -> 8715.78 | N7: =(M7/$J$1)*100*$J$2 -> 34.86 | R7: 0.3937 | S7: =R7-$R$19 -> 0.353 | T7: =(S7*30081.94)-1839.97 -> 8778.95 | U7: =(T7/$J$1)*100*$J$2 -> 35.12
B8: SF | C8: SF | D8: 0.1256 | E8: =D8-$D$19 -> 0.0836 | F8: =(E8*43899.28)-3071.53 -> 598.45 | G8: =(F8/$J$1)*100*$J$2 -> 2.39 | K8: 0.1173 | L8: =K8-$K$19 -> 0.0756 | M8: =(L8*43899.28)-3071.53 -> 247.26 | N8: =(M8/$J$1)*100*$J$2 -> 0.99 | R8: 0.125 | S8: =R8-$R$19 -> 0.0843 | T8: =(S8*43899.28)-3071.53 -> 629.18 | U8: =(T8/$J$1)*100*$J$2 -> 2.52
B9: Bacytracin 2,5mM SF | C9: N | D9: 0.3192 | E9: 0.2772 | F9: =(E9*30081.94)-1839.97 -> 6498.74 | G9: 25.99 | K9: 0.3111 | L9: 0.2694 | M9: =(L9*30081.94)-1839.97 -> 6264.10 | N9: 25.06 | R9: 0.4045 | S9: 0.3638 | T9: =(S9*30081.94)-1839.97 -> 9103.84 | U9: 36.42
B10: Bacytracin 2,5mM SF | C10: SF | D10: 0.122 | E10: 0.08 | F10: =(E10*43899.28)-3071.53 -> 440.41 | G10: 1.76 | K10: 0.1214 | L10: 0.0797 | M10: =(L10*43899.28)-3071.53 -> 427.24 | N10: 1.71 | R10: 0.1363 | S10: 0.0956 | T10: =(S10*43899.28)-3071.53 -> 1125.24 | U10: 4.50
B11: Perphenazine 0,5mM SF | C11: N | D11: 0.2947 | E11: 0.2527 | F11: =(E11*30081.94)-1839.97 -> 5761.74 | G11: 23.05 | K11: 0.258 | L11: 0.2163 | M11: =(L11*30081.94)-1839.97 -> 4666.75 | N11: 18.67 | R11: 0.2904 | S11: 0.2497 | T11: =(S11*30081.94)-1839.97 -> 5671.49 | U11: 22.69
B12: Perphenazine 0,5mM SF | C12: SF | D12: 0.124 | E12: 0.082 | F12: =(E12*43899.28)-3071.53 -> 528.21 | G12: 2.11 | K12: 0.1126 | L12: 0.0709 | M12: =(L12*43899.28)-3071.53 -> 40.93 | N12: 0.16 | R12: 0.1345 | S12: 0.0938 | T12: =(S12*43899.28)-3071.53 -> 1046.22 | U12: 4.18
B13: Prochlorperazine 0,5mM SF | C13: N | D13: 0.3367 | E13: 0.2947 | F13: =(E13*30081.94)-1839.97 -> 7025.18 | G13: 28.10 | K13: 0.3991 | L13: 0.3574 | M13: =(L13*30081.94)-1839.97 -> 8911.32 | N13: 35.65 | R13: 0.3885 | S13: 0.3478 | T13: =(S13*30081.94)-1839.97 -> 8622.53 | U13: 34.49
B14: Prochlorperazine 0,5mM SF | C14: SF | D14: 0.1503 | E14: 0.1083 | F14: =(E14*43899.28)-3071.53 -> 1682.76 | G14: 6.73 | K14: 0.1592 | L14: 0.1175 | M14: =(L14*43899.28)-3071.53 -> 2086.64 | N14: 8.35 | R14: 0.1631 | S14: 0.1224 | T14: =(S14*43899.28)-3071.53 -> 2301.74 | U14: 9.21
B15: SF | C15: Prochlorperazine 0,5mM N | D15: 0.1281 | E15: 0.0861 | F15: =(E15*30081.94)-1839.97 -> 750.09 | G15: 3.00 | K15: 0.1322 | L15: 0.0905 | M15: =(L15*30081.94)-1839.97 -> 882.45 | N15: 3.53 | R15: 0.1207 | S15: 0.08 | T15: =(S15*30081.94)-1839.97 -> 566.59 | U15: 2.27
B16: SF | C16: Prochlorperazine 0,5mM SF | D16: 0.179 | E16: 0.137 | F16: =(E16*43899.28)-3071.53 -> 2942.67 | G16: 11.77 | K16: 0.1922 | L16: 0.1505 | M16: =(L16*43899.28)-3071.53 -> 3535.31 | N16: 14.14 | R16: 0.1727 | S16: 0.132 | T16: =(S16*43899.28)-3071.53 -> 2723.17 | U16: 10.89
B17: SF | C17: Perphenazine 0,5mM N | D17: 0.1288 | E17: 0.0868 | F17: =(E17*30081.94)-1839.97 -> 771.14 | G17: 3.08 | K17: 0.1095 | L17: 0.0678 | M17: =(L17*30081.94)-1839.97 -> 199.59 | N17: 0.80 | R17: 0.1281 | S17: 0.0874 | T17: =(S17*30081.94)-1839.97 -> 789.19 | U17: 3.16
B18: SF | C18: Perphenazine 0,5mM SF | D18: 0.1507 | E18: 0.1087 | F18: =(E18*43899.28)-3071.53 -> 1700.32 | G18: 6.80 | K18: 0.1556 | L18: 0.1139 | M18: =(L18*43899.28)-3071.53 -> 1928.60 | N18: 7.71 | R18: 0.1779 | S18: 0.1372 | T18: =(S18*43899.28)-3071.53 -> 2951.45 | U18: 11.81
C19: BLANK | D19: 0.042 | K19: 0.0417 | R19: 0.0407
E24: mean | G24: mean | H24: SD
B25: insert | C25: well | D25: I | E25: II | F25: III
B26: SF (medium without serum) | C26: N (growth medium with serum) | D26: =G7 -> 34.33 | E26: =N7 -> 34.86 | F26: =U7 -> 35.12 | G26: =AVERAGE(D26:F26) -> 34.77 | H26: =STDEVA(D26:F26) -> 0.40
B27: SF | C27: SF | D27: =G8 -> 2.39 | E27: =N8 -> 0.99 | F27: =U8 -> 2.52 | G27: 1.97 | H27: 0.85
B28: Bacytracin 2,5mM SF | C28: N | D28: 25.99 | E28: 25.06 | F28: 36.42 | G28: 29.16 | H28: 6.30
B29: Bacytracin 2,5mM SF | C29: SF | D29: 1.76 | E29: 1.71 | F29: 4.50 | G29: 2.66 | H29: 1.60
B30: Perphenazine 0,5mM SF | C30: N | D30: 23.05 | E30: 18.67 | F30: 22.69 | G30: 21.47 | H30: 2.43
B31: Perphenazine 0,5mM SF | C31: SF | D31: 2.11 | E31: 0.16 | F31: 4.18 | G31: 2.15 | H31: 2.01
B32: Prochlorperazine 0,5mM SF | C32: N | D32: 28.10 | E32: 35.65 | F32: 34.49 | G32: 32.75 | H32: 4.06
B33: Prochlorperazine 0,5mM SF | C33: SF | D33: 6.73 | E33: 8.35 | F33: 9.21 | G33: 8.09 | H33: 1.26
B34: SF | C34: Prochlorperazine 0,5mM N | D34: 3.00 | E34: 3.53 | F34: 2.27 | G34: 2.93 | H34: 0.63
B35: SF | C35: Prochlorperazine 0,5mM SF | D35: 11.77 | E35: 14.14 | F35: 10.89 | G35: 12.27 | H35: 1.68
B36: SF | C36: Perphenazine 0,5mM N | D36: 3.08 | E36: 0.80 | F36: 3.16 | G36: 2.35 | H36: 1.34
B37: SF | C37: Perphenazine 0,5mM SF | D37: 6.80 | E37: 7.71 | F37: 11.81 | G37: 8.77 | H37: 2.67
B40: Po odjęciu kontroli negatywnej SF do SF
E42: mean | G42: mean | H42: SD
B43: insert | C43: well | D43: I | E43: II | F43: III
B44: SF (medium without serum) | C44: N (growth medium with serum) | D44: =D26-D27 -> 31.94 | E44: =E26-E27 -> 33.87 | F44: 32.60 | G44: =AVERAGE(D44:F44) -> 32.80 | H44: =STDEVA(D44:F44) -> 0.98
B45: Bacytracin 2,5mM SF | C45: N | D45: =D28-D29 -> 24.23 | E45: =E28-E29 -> 23.35 | F45: 31.91 | G45: 26.50 | H45: 4.71
B46: Perphenazine 0,5mM SF | C46: N | D46: =D30-D31 -> 20.93 | E46: =E30-E31 -> 18.50 | F46: 18.50 | G46: 19.31 | H46: 1.40
B47: Prochlorperazine 0,5mM SF | C47: N | D47: =D32-D33 -> 21.37 | E47: =E32-E33 -> 27.30 | F47: 25.28 | G47: 24.65 | H47: 3.01

Sheet transwell invasion
F1: cells seeded | J1: 25000
F2: multiplication factor | J2: 1
F3: for SF N used cal curve y=30081,94x-1839,97
F4: for SF SF used cal curve y=43899,28x-3071,53
F5: amount of cells | M5: amount of cells | T5: amount of cells
B6: insert | C6: well | D6: A | E6: A-blank | G6: % cells | K6: A | L6: A-blank | N6: % komórek | R6: A | S6: A-blank | U6: % komórek
B7: SF (medium without serum) | C7: N (growth medium with serum) | D7: 0.4178 | E7: =D7-$D$19 -> 0.3758 | F7: =(E7*30081.94)-1839.97 -> 9464.82 | G7: =(F7/$J$1)*100*$J$2 -> 37.86 | K7: 0.3839 | L7: =K7-$K$19 -> 0.3422 | M7: =(L7*30081.94)-1839.97 -> 8454.07 | N7: =(M7/$J$1)*100*$J$2 -> 33.82 | R7: 0.347 | S7: =R7-$R$19 -> 0.3063 | T7: =(S7*30081.94)-1839.97 -> 7374.13 | U7: =(T7/$J$1)*100*$J$2 -> 29.50
B8: SF | C8: SF | D8: 0.1253 | E8: =D8-$D$19 -> 0.0833 | F8: =(E8*43899.28)-3071.53 -> 585.28 | G8: =(F8/$J$1)*100*$J$2 -> 2.34 | K8: 0.1286 | L8: =K8-$K$19 -> 0.0869 | M8: =(L8*43899.28)-3071.53 -> 743.32 | N8: =(M8/$J$1)*100*$J$2 -> 2.97 | R8: 0.1268 | S8: =R8-$R$19 -> 0.0861 | T8: =(S8*43899.28)-3071.53 -> 708.20 | U8: =(T8/$J$1)*100*$J$2 -> 2.83
B9: Bacytracin 2,5mM SF | C9: N | D9: 0.2687 | E9: 0.2267 | F9: =(E9*30081.94)-1839.97 -> 4979.61 | G9: 19.92 | K9: 0.3109 | L9: 0.2692 | M9: =(L9*30081.94)-1839.97 -> 6258.09 | N9: 25.03 | R9: 0.3185 | S9: 0.2778 | T9: =(S9*30081.94)-1839.97 -> 6516.79 | U9: 26.07
B10: Bacytracin 2,5mM SF | C10: SF | D10: 0.2049 | E10: 0.1629 | F10: =(E10*43899.28)-3071.53 -> 4079.66 | G10: 16.32 | K10: 0.2077 | L10: 0.166 | M10: =(L10*43899.28)-3071.53 -> 4215.75 | N10: 16.86 | R10: 0.1879 | S10: 0.1472 | T10: =(S10*43899.28)-3071.53 -> 3390.44 | U10: 13.56
B11: Perphenazine 0,5mM SF | C11: N | D11: 0.3745 | E11: 0.3325 | F11: =(E11*30081.94)-1839.97 -> 8162.28 | G11: 32.65 | K11: 0.2982 | L11: 0.2565 | M11: =(L11*30081.94)-1839.97 -> 5876.05 | N11: 23.50 | R11: 0.3196 | S11: 0.2789 | T11: =(S11*30081.94)-1839.97 -> 6549.88 | U11: 26.20
B12: Perphenazine 0,5mM SF | C12: SF | D12: 0.1612 | E12: 0.1192 | F12: =(E12*43899.28)-3071.53 -> 2161.26 | G12: 8.65 | K12: 0.1479 | L12: 0.1062 | M12: =(L12*43899.28)-3071.53 -> 1590.57 | N12: 6.36 | R12: 0.1577 | S12: 0.117 | T12: =(S12*43899.28)-3071.53 -> 2064.69 | U12: 8.26
B13: Prochlorperazine 0,5mM SF | C13: N | D13: 0.316 | E13: 0.274 | F13: =(E13*30081.94)-1839.97 -> 6402.48 | G13: 25.61 | K13: 0.2608 | L13: 0.2191 | M13: =(L13*30081.94)-1839.97 -> 4750.98 | N13: 19.00 | R13: 0.276 | S13: 0.2353 | T13: =(S13*30081.94)-1839.97 -> 5238.31 | U13: 20.95
B14: Prochlorperazine 0,5mM SF | C14: SF | D14: 0.1293 | E14: 0.0873 | F14: =(E14*43899.28)-3071.53 -> 760.88 | G14: 3.04 | K14: 0.1281 | L14: 0.0864 | M14: =(L14*43899.28)-3071.53 -> 721.37 | N14: 2.89 | R14: 0.129 | S14: 0.0883 | T14: =(S14*43899.28)-3071.53 -> 804.78 | U14: 3.22
B15: SF | C15: Prochlorperazine 0,5mM N | D15: 0.126 | E15: 0.084 | F15: =(E15*30081.94)-1839.97 -> 686.91 | G15: 2.75 | K15: 0.1404 | L15: 0.0987 | M15: =(L15*30081.94)-1839.97 -> 1129.12 | N15: 4.52 | R15: 0.1278 | S15: 0.0871 | T15: =(S15*30081.94)-1839.97 -> 780.17 | U15: 3.12
B16: SF | C16: Prochlorperazine 0,5mM SF | D16: 0.1561 | E16: 0.1141 | F16: =(E16*43899.28)-3071.53 -> 1937.38 | G16: 7.75 | K16: 0.1729 | L16: 0.1312 | M16: =(L16*43899.28)-3071.53 -> 2688.06 | N16: 10.75 | R16: 0.1687 | S16: 0.128 | T16: =(S16*43899.28)-3071.53 -> 2547.58 | U16: 10.19
B17: SF | C17: Perphenazine 0,5mM N | D17: 0.1147 | E17: 0.0727 | F17: =(E17*30081.94)-1839.97 -> 346.99 | G17: 1.39 | K17: 0.1248 | L17: 0.0831 | M17: =(L17*30081.94)-1839.97 -> 659.84 | N17: 2.64 | R17: 0.1247 | S17: 0.084 | T17: =(S17*30081.94)-1839.97 -> 686.91 | U17: 2.75
B18: SF | C18: Perphenazine 0,5mM SF | D18: 0.1576 | E18: 0.1156 | F18: =(E18*43899.28)-3071.53 -> 2003.23 | G18: 8.01 | K18: 0.149 | L18: 0.1073 | M18: =(L18*43899.28)-3071.53 -> 1638.86 | N18: 6.56 | R18: 0.1705 | S18: 0.1298 | T18: =(S18*43899.28)-3071.53 -> 2626.60 | U18: 10.51
C19: BLANK | D19: 0.042 | K19: 0.0417 | R19: 0.0407
E24: mean | G24: mean | H24: SD
B25: insert | C25: well | D25: I | E25: II | F25: III
B26: SF (medium without serum) | C26: N (growth medium with serum) | D26: =G7 -> 37.86 | E26: =N7 -> 33.82 | F26: =U7 -> 29.50 | G26: =AVERAGE(D26:F26) -> 33.72 | H26: =STDEVA(D26:F26) -> 4.18
B27: SF | C27: SF | D27: =G8 -> 2.34 | E27: =N8 -> 2.97 | F27: =U8 -> 2.83 | G27: 2.72 | H27: 0.33
B28: Bacytracin 2,5mM SF | C28: N | D28: 19.92 | E28: 25.03 | F28: 26.07 | G28: 23.67 | H28: 3.29
B29: Bacytracin 2,5mM SF | C29: SF | D29: 16.32 | E29: 16.86 | F29: 13.56 | G29: 15.58 | H29: 1.77
B30: Perphenazine 0,5mM SF | C30: N | D30: 32.65 | E30: 23.50 | F30: 26.20 | G30: 27.45 | H30: 4.70
B31: Perphenazine 0,5mM SF | C31: SF | D31: 8.65 | E31: 6.36 | F31: 8.26 | G31: 7.76 | H31: 1.22
B32: Prochlorperazine 0,5mM SF | C32: N | D32: 25.61 | E32: 19.00 | F32: 20.95 | G32: 21.86 | H32: 3.39
B33: Prochlorperazine 0,5mM SF | C33: SF | D33: 3.04 | E33: 2.89 | F33: 3.22 | G33: 3.05 | H33: 0.17
B34: SF | C34: Prochlorperazine 0,5mM N | D34: 2.75 | E34: 4.52 | F34: 3.12 | G34: 3.46 | H34: 0.93
B35: SF | C35: Prochlorperazine 0,5mM SF | D35: 7.75 | E35: 10.75 | F35: 10.19 | G35: 9.56 | H35: 1.60
B36: SF | C36: Perphenazine 0,5mM N | D36: 1.39 | E36: 2.64 | F36: 2.75 | G36: 2.26 | H36: 0.76
B37: SF | C37: Perphenazine 0,5mM SF | D37: 8.01 | E37: 6.56 | F37: 10.51 | G37: 8.36 | H37: 2.00
B39: after subtracting the negative control (SF to SF)
E40: mean | G40: mean | H40: SD
B41: insert | C41: well | D41: I | E41: II | F41: III
B42: SF (medium without serum) | C42: N (growth medium with serum) | D42: =D26-D27 -> 35.52 | E42: =E26-E27 -> 30.84 | F42: 26.66 | G42: =AVERAGE(D42:F42) -> 31.01 | H42: =STDEVA(D42:F42) -> 4.43
B43: Bacytracin 2,5mM SF | C43: N | D43: =D28-D29 -> 3.60 | E43: =E28-E29 -> 8.17 | F43: 12.51 | G43: 8.09 | H43: 4.45
B44: Perphenazine 0,5mM SF | C44: N | D44: =D30-D31 -> 24.00 | E44: =E30-E31 -> 17.14 | F44: 17.94 | G44: 19.70 | H44: 3.75
B45: Prochlorperazine 0,5mM SF | C45: N | D45: =D32-D33 -> 22.57 | E45: =E32-E33 -> 16.12 | F45: 17.73 | G45: 18.81 | H45: 3.36

Sheet migration and invasion analysis
B2: control | F2: bacytracin | J2: perphenazine | N2: prochlorperazine
A3: concentration | F3: 2,5 mM | J3: 0,5 M | N3: 0,5 M
B4: without geltrex | D4: with geltrex | F4: without geltrex | H4: with geltrex | J4: without geltrex | L4: with geltrex | N4: without geltrex | P4: with geltrex
B5: % migration | C5: SD | D5: % invasion | E5: SD | F5: % migration | G5: SD | H5: % invasion | I5: SD | J5: % migration | K5: SD | L5: % invasion | M5: SD | N5: % migration | O5: SD | P5: % invasion | Q5: SD
A6: with FBS | B6: ='transwell migration'!G26 -> 34.77 | C6: ='transwell migration'!H26 -> 0.40 | D6: ='transwell invasion'!G26 -> 33.72 | E6: ='transwell invasion'!H26 -> 4.18 | F6: ='transwell migration'!G28 -> 29.16 | G6: ='transwell migration'!H28 -> 6.30 | H6: ='transwell invasion'!G28 -> 23.67 | I6: ='transwell invasion'!H28 -> 3.29 | J6: ='transwell migration'!G30 -> 21.47 | K6: ='transwell migration'!H30 -> 2.43 | L6: ='transwell invasion'!G30 -> 27.45 | M6: ='transwell invasion'!H30 -> 4.70 | N6: ='transwell migration'!G32 -> 32.75 | O6: ='transwell migration'!H32 -> 4.06 | P6: ='transwell invasion'!G32 -> 21.86 | Q6: ='transwell invasion'!H32 -> 3.39
A7: without FBS | B7: ='transwell migration'!G27 -> 1.97 | C7: ='transwell migration'!H27 -> 0.85 | D7: ='transwell invasion'!G27 -> 2.72 | E7: ='transwell invasion'!H27 -> 0.33 | F7: ='transwell migration'!G29 -> 2.66 | G7: ='transwell migration'!H29 -> 1.60 | H7: ='transwell invasion'!G29 -> 15.58 | I7: ='transwell invasion'!H29 -> 1.77 | J7: ='transwell migration'!G31 -> 2.15 | K7: ='transwell migration'!H31 -> 2.01 | L7: ='transwell invasion'!G31 -> 7.76 | M7: ='transwell invasion'!H31 -> 1.22 | N7: ='transwell migration'!G33 -> 8.09 | O7: ='transwell migration'!H33 -> 1.26 | P7: ='transwell invasion'!G33 -> 3.05 | Q7: ='transwell invasion'!H33 -> 0.17
